bitfinex/quotes_BTCUSD_20250109
["timestamp","ask_amount","ask_price","bid_price","bid_amount"]
[1736433530465,0.00050126,92579.0,92578.0,0.248754]
[1736433530704,0.00050126,92579.0,92578.0,0.13701976]
[1736433530918,0.00050126,92579.0,92576.0,0.001]
[1736433531134,0.216034,92578.0,92572.0,0.00972]
[1736433531597,0.216034,92578.0,92577.0,0.004]
[1736433531795,0.216034,92578.0,92572.0,0.00972]
[1736433532030,0.216043,92574.0,92572.0,0.00972]
[1736433532239,0.15,92574.0,92548.0,0.0832]
[1736433532445,0.216073,92561.0,92549.0,0.10429976]
[1736433532671,0.21609,92554.0,92549.0,0.10429976]
[1736433532892,0.15,92572.0,92549.0,0.10429976]
[1736433533102,0.216034,92578.0,92554.0,0.023]
[1736433533347,0.00050126,92579.0,92559.0,0.023]
[1736433533560,0.001,92574.0,92560.0,0.32037476]
[1736433533886,0.001,92574.0,92565.0,0.023]
[1736433534095,0.216045,92573.0,92567.0,0.023]
[1736433534313,0.001,92574.0,92569.0,0.023]
[1736433534516,0.001,92574.0,92570.0,0.10429976]
[1736433534743,0.216045,92573.0,92570.0,0.10429976]
[1736433535098,0.216055,92569.0,92568.0,0.00972]
[1736433535506,0.00050126,92579.0,92550.0,0.23581998]
[1736433535507,0.216077,92560.0,92550.0,0.23581998]
[1736433535707,0.216078,92559.0,92551.0,0.11401976]
[1736433535919,0.15,92575.0,92554.0,0.023]
[1736433536138,0.151,92578.0,92551.0,0.11401976]
[1736433536139,0.216059,92568.0,92556.0,0.239083]
[1736433536343,0.15,92578.0,92558.0,0.023]
[1736433536554,0.00050126,92579.0,92559.0,0.10429976]
[1736433536766,0.216067,92564.0,92559.0,0.10429976]
[1736433536966,0.21606,92567.0,92559.0,0.10429976]
[1736433537201,0.21607,92563.0,92559.0,0.10429976]
[1736433537827,0.21606,92567.0,92559.0,0.10429976]
[1736433538047,0.00050126,92579.0,92566.0,0.216061]
[1736433538259,0.00050126,92579.0,92568.0,0.239057]
[1736433538473,0.00050126,92579.0,92574.0,0.216043]
[1736433538682,0.00050126,92579.0,92576.0,0.023]
[1736433538918,0.00050126,92579.0,92578.0,0.216034]
[1736433539129,0.00050126,92579.0,92578.0,0.34333376]
[1736433539348,0.00050126,92579.0,92578.0,0.44333376]
[1736433539549,0.00021502,92579.0,92578.0,0.54333376]
[1736433539829,0.2159116,92600.0,92579.0,0.023]
[1736433540027,0.21606194,92600.0,92581.0,0.023]
[1736433540247,0.00015034,92600.0,92584.0,0.21602]
[1736433540454,0.00015034,92600.0,92599.0,0.215985]
[1736433540677,0.00015034,92600.0,92599.0,0.22729976]
[1736433541685,0.00015034,92600.0,92599.0,0.12729976]
[1736433541900,0.00015034,92600.0,92599.0,0.10429976]
[1736433542342,0.00115034,92600.0,92599.0,0.13529976]
[1736433542504,0.00096502,92600.0,92599.0,0.13529976]
[1736433543142,0.00096502,92600.0,92599.0,0.01]
[1736433543774,8.5e-05,92604.0,92600.0,0.238982]
[1736433544011,8.5e-05,92604.0,92602.0,0.12729976]
[1736433544213,8.5e-05,92604.0,92603.0,0.30537927]
[1736433544412,8.5e-05,92604.0,92603.0,0.30429976]
[1736433544838,8.5e-05,92604.0,92603.0,0.20429976]
[1736433545420,8.5e-05,92604.0,92603.0,0.20729976]
[1736433546259,8.5e-05,92604.0,92603.0,0.20829976]
[1736433546674,8.5e-05,92604.0,92603.0,0.20729976]
[1736433546938,8.5e-05,92604.0,92603.0,0.30429976]
[1736433547130,8.5e-05,92604.0,92603.0,0.35649976]
[1736433547356,8.5e-05,92604.0,92603.0,0.36249976]
[1736433547492,8.5e-05,92604.0,92603.0,0.45649976]
[1736433547898,8.5e-05,92604.0,92603.0,0.46249976]
[1736433548100,8.5e-05,92604.0,92603.0,0.26249976]
[1736433548503,8.5e-05,92604.0,92603.0,0.21329976]
[1736433548716,8.5e-05,92604.0,92603.0,0.22301976]
[1736433548916,8.5e-05,92604.0,92603.0,0.11329976]
[1736433549129,0.215973,92604.0,92603.0,0.11329976]
[1736433549331,0.215966,92607.0,92603.0,0.11329976]
[1736433549540,0.215966,92607.0,92603.0,0.11029976]
[1736433549737,0.215966,92607.0,92603.0,0.12330174]
[1736433549944,0.1501702,92611.0,92603.0,0.12330174]
[1736433550361,0.1501702,92611.0,92603.0,0.12230174]
[1736433550562,0.1501702,92611.0,92603.0,0.11630174]
[1736433550992,0.0001702,92611.0,92603.0,0.10829976]
[1736433551192,0.0001702,92611.0,92603.0,0.10429976]
[1736433551598,0.0001702,92611.0,92603.0,0.10529976]
[1736433551797,0.215968,92607.0,92603.0,0.10529976]
[1736433552063,0.215968,92607.0,92603.0,0.001]
[1736433552064,0.15,92606.0,92603.0,0.001]
[1736433552265,0.15,92604.0,92603.0,0.001]
[1736433552490,0.215968,92606.0,92603.0,0.001]
[1736433552900,0.32027076,92605.0,92603.0,0.001]
[1736433553111,0.10429976,92605.0,92572.0,0.00972]
[1736433553327,0.216045,92573.0,92572.0,0.1141701]
[1736433553503,0.216034,92578.0,92572.0,0.1141701]
[1736433553945,0.216034,92578.0,92572.0,0.1044501]
[1736433554359,0.215975,92603.0,92572.0,0.1044501]
[1736433554530,0.001,92606.0,92582.0,0.023]
[1736433554760,0.001,92606.0,92584.0,0.023]
[1736433554886,0.215959,92610.0,92588.0,0.023]
[1736433555096,0.215959,92610.0,92590.0,0.023]
[1736433555319,0.215976,92603.0,92592.0,0.023]
[1736433555521,0.003,92605.0,92594.0,0.215996]
[1736433555701,0.215962,92609.0,92595.0,0.10537955]
[1736433556125,0.215962,92609.0,92598.0,0.023]
[1736433556329,0.215962,92609.0,92600.0,0.023]
[1736433556624,0.21603,92617.0,92602.0,0.023]
[1736433556945,0.215952,92613.0,92604.0,0.023]
[1736433557170,0.215952,92613.0,92606.0,0.023]
[1736433557385,0.215952,92613.0,92607.0,0.10429976]
[1736433557581,0.215961,92609.0,92600.0,0.215982]
[1736433557793,0.215952,92613.0,92602.0,0.023]
[1736433557938,0.0001708,92621.0,92603.0,0.10429976]
[1736433558143,0.215938,92619.0,92605.0,0.023]
[1736433558349,0.0001708,92621.0,92609.0,0.215961]
[1736433558575,0.0001708,92621.0,92614.0,0.215948]
[1736433558755,0.0001708,92621.0,92616.0,0.023]
[1736433558951,0.0001708,92621.0,92620.0,0.215936]
[1736433559156,0.0001708,92621.0,92620.0,0.37933273]
[1736433559474,0.0001708,92621.0,92620.0,0.46013273]
[1736433559894,0.0001708,92621.0,92620.0,0.71013273]
[1736433560088,0.0001708,92621.0,92620.0,0.81013273]
[1736433561303,0.0021708,92621.0,92620.0,0.67403576]
[1736433561501,0.0042097,92621.0,92620.0,0.57403576]
[1736433561704,0.0042097,92621.0,92620.0,0.58375576]
[1736433561909,0.0052097,92621.0,92620.0,0.31230636]
[1736433562155,0.0052097,92621.0,92620.0,0.32502636]
[1736433562568,0.0052097,92621.0,92620.0,0.32202636]
[1736433562792,0.0042097,92621.0,92620.0,0.31302636]
[1736433563001,0.0042097,92621.0,92620.0,0.22181976]
[1736433563407,0.0042097,92621.0,92620.0,0.21781976]
[1736433563744,0.0042097,92621.0,92620.0,0.22081976]
[1736433564142,0.0042097,92621.0,92620.0,0.22881976]
[1736433564349,0.0052097,92621.0,92620.0,0.22881976]
[1736433564663,0.0042097,92621.0,92620.0,0.22081976]
[1736433564915,0.0052097,92621.0,92620.0,0.22881976]
[1736433565080,0.0042097,92621.0,92620.0,0.21781976]
[1736433565287,0.0042097,92621.0,92620.0,0.22081976]
[1736433565490,0.0042097,92621.0,92620.0,0.22881976]
[1736433565491,0.0052097,92621.0,92620.0,0.22881976]
[1736433565893,0.0052097,92621.0,92620.0,0.22581976]
[1736433566098,0.0052097,92621.0,92620.0,0.22881976]
[1736433566665,0.0052097,92621.0,92620.0,0.22581976]
[1736433567107,0.0052097,92621.0,92620.0,0.22981976]
[1736433567354,0.0042097,92621.0,92620.0,0.22181976]
[1736433567722,0.0052097,92621.0,92620.0,0.23081976]
[1736433568293,0.0052097,92621.0,92620.0,0.48081976]
[1736433568668,0.0052097,92621.0,92620.0,0.47681976]
[1736433569503,0.0052097,92621.0,92620.0,0.49281639]
[1736433569939,0.0052097,92621.0,92620.0,0.48881639]
[1736433570175,0.0052097,92621.0,92620.0,0.49281639]
[1736433572855,0.0052097,92621.0,92620.0,0.20777976]
[1736433573272,0.0052097,92621.0,92620.0,0.23077976]
[1736433573449,0.0052097,92621.0,92620.0,0.33077976]
[1736433573654,0.0052097,92621.0,92620.0,0.48077976]
[1736433573864,0.0052097,92621.0,92620.0,0.58077976]
[1736433574229,0.0052097,92621.0,92620.0,0.38077976]
[1736433574442,0.0052097,92621.0,92620.0,0.23077976]
[1736433574636,0.0052097,92621.0,92620.0,0.33077976]
[1736433575052,0.0052097,92621.0,92620.0,0.22109976]
[1736433575255,0.0052097,92621.0,92620.0,0.23077976]
[1736433577480,0.0052097,92621.0,92620.0,0.11729976]
[1736433577685,0.0052097,92621.0,92620.0,0.013]
[1736433578078,0.01758164,92621.0,92620.0,0.013]
[1736433578291,0.0052097,92621.0,92620.0,0.009]
[1736433578494,0.0042097,92621.0,92603.0,0.00968]
[1736433578701,0.215973,92604.0,92603.0,0.00968]
[1736433579714,0.2200119,92604.0,92603.0,0.00968]
[1736433580072,0.2200119,92604.0,92591.0,0.023]
[1736433580273,0.2200119,92604.0,92588.0,0.21601]
[1736433580274,0.0040389,92604.0,92588.0,0.00015034]
[1736433580550,0.216004,92591.0,92588.0,0.00015034]
[1736433580686,0.2200429,92591.0,92588.0,0.00015034]
[1736433580891,0.4360469,92591.0,92588.0,0.00015034]
[1736433581537,0.2200429,92591.0,92588.0,0.00015034]
[1736433581749,0.4360469,92591.0,92588.0,0.00015034]
[1736433581924,0.4430469,92591.0,92588.0,0.00115034]
[1736433582103,0.4360469,92591.0,92588.0,0.00015034]
[1736433582548,0.4400469,92591.0,92588.0,0.00015034]
[1736433582738,0.4410469,92591.0,92588.0,0.00015034]
[1736433582944,0.0090389,92591.0,92588.0,0.00015034]
[1736433583144,0.0080389,92591.0,92590.0,0.023]
[1736433583348,0.0080389,92591.0,92590.0,0.12837957]
[1736433583568,0.0080389,92591.0,92590.0,0.18540326]
[1736433583967,0.0040389,92591.0,92590.0,0.12729976]
[1736433584527,0.0040389,92591.0,92590.0,0.10429976]
[1736433584724,0.0040389,92591.0,92588.0,0.00015034]
[1736433585017,0.0050389,92591.0,92590.0,0.006]
[1736433585187,0.0050389,92591.0,92590.0,0.007]
[1736433585823,0.216006,92590.0,92588.0,0.00015034]
[1736433586570,0.216006,92590.0,92588.0,0.00115034]
[1736433586781,0.2200449,92590.0,92588.0,0.00115034]
[1736433587203,0.0040389,92590.0,92588.0,0.00115034]
[1736433587874,0.0110389,92590.0,92588.0,0.00115034]
[1736433588285,0.216008,92589.0,92588.0,0.00115034]
[1736433588496,0.216008,92589.0,92588.0,0.00015034]
[1736433588714,0.2200469,92589.0,92588.0,0.00015034]
[1736433589328,0.2200469,92589.0,92588.0,0.00115034]
[1736433589941,0.2210469,92589.0,92588.0,0.00115034]
[1736433590188,0.28635149,92589.0,92588.0,0.00115034]
[1736433590400,0.2210469,92589.0,92588.0,0.00115034]
[1736433590608,0.2210469,92589.0,92588.0,0.00015034]
[1736433591018,0.2230469,92589.0,92588.0,0.00015034]
[1736433591269,0.3720469,92589.0,92588.0,0.00015034]
[1736433591444,0.3730469,92589.0,92588.0,0.00015034]
[1736433591637,0.3710469,92589.0,92588.0,0.00015034]
[1736433591861,0.3853785,92589.0,92588.0,0.00015034]
[1736433592076,0.3843785,92589.0,92588.0,0.00015034]
[1736433592532,0.3913785,92589.0,92588.0,0.00115034]
[1736433592934,0.3893785,92589.0,92588.0,0.00115034]
[1736433593085,0.3913785,92589.0,92588.0,0.00115034]
[1736433593960,0.3913785,92589.0,92588.0,0.00015034]
[1736433593961,0.8716224,92589.0,92588.0,0.00015034]
[1736433594127,0.8776224,92589.0,92588.0,0.00115034]
[1736433594766,0.8756224,92589.0,92588.0,0.00115034]
[1736433594971,0.8776224,92589.0,92588.0,0.00115034]
[1736433595401,1.08422192,92589.0,92588.0,0.00115034]
[1736433595618,0.1,92585.0,92579.0,0.0001698]
[1736433595834,0.216071,92562.0,92544.0,0.00968]
[1736433596044,0.216071,92562.0,92538.0,0.00968]
[1736433596252,0.8571564,92562.0,92538.0,0.00968]
[1736433596490,0.8534564,92562.0,92538.0,0.00968]
[1736433597978,0.8534564,92562.0,92537.0,0.00968]
[1736433598192,0.8604564,92562.0,92561.0,0.00117]
[1736433598818,0.8534564,92562.0,92561.0,0.00017]
[1736433599034,0.8554564,92562.0,92561.0,0.00017]
[1736433599237,0.95975616,92562.0,92561.0,0.00017]
[1736433599447,0.8554564,92562.0,92561.0,0.00017]
[1736433599661,0.368071,92562.0,92561.0,0.00017]
[1736433600080,0.38022947,92562.0,92561.0,0.00017]
[1736433600337,0.38722947,92562.0,92561.0,0.00117]
[1736433600751,0.38022947,92562.0,92561.0,0.00017]
[1736433600953,0.218071,92562.0,92561.0,0.00017]
[1736433601362,0.216057,92569.0,92561.0,0.00017]
[1736433601571,0.216067,92564.0,92562.0,0.0754]
[1736433601778,0.004,92562.0,92561.0,0.00017]
[1736433601993,0.432134,92564.0,92561.0,0.00017]
[1736433602432,0.216071,92562.0,92561.0,0.00017]
[1736433603455,0.220071,92562.0,92561.0,0.00017]
[1736433603836,0.216071,92562.0,92561.0,0.00017]
[1736433604221,0.220071,92562.0,92561.0,0.00017]
[1736433604727,0.216071,92562.0,92561.0,0.00017]
[1736433604925,0.220071,92562.0,92561.0,0.00017]
[1736433605131,0.004,92562.0,92561.0,0.00017]
[1736433605388,0.005,92562.0,92561.0,0.00017]
[1736433605568,0.005,92562.0,92561.0,0.07637]
[1736433605781,0.004,92562.0,92561.0,0.20366976]
[1736433606149,0.005,92562.0,92561.0,0.20366976]
[1736433606842,0.001,92562.0,92561.0,0.20366976]
[1736433607045,0.001,92562.0,92561.0,0.07637]
[1736433607244,0.221071,92562.0,92561.0,0.07637]
[1736433607454,0.220071,92562.0,92561.0,0.07637]
[1736433607670,0.216071,92562.0,92561.0,0.00017]
[1736433607908,0.217071,92562.0,92561.0,0.00817]
[1736433608320,0.01202666,92564.0,92561.0,0.00217]
[1736433608553,0.216069,92563.0,92561.0,0.00317]
[1736433608761,0.001,92562.0,92561.0,0.00317]
[1736433609182,0.001,92562.0,92561.0,0.00122943]
[1736433609376,0.216069,92563.0,92561.0,0.00122943]
[1736433610056,0.216105,92548.0,92543.0,0.00968]
[1736433610266,0.43221,92548.0,92543.0,0.00968]
[1736433610517,0.216113,92544.0,92543.0,0.00968]
[1736433610731,0.432227,92544.0,92541.0,0.0752]
[1736433610955,0.216134,92535.0,92529.0,0.0752]
[1736433611162,0.216134,92535.0,92527.0,0.00017]
[1736433613549,0.218134,92535.0,92527.0,0.00017]
[1736433613759,0.216134,92535.0,92527.0,0.00017]
[1736433614170,0.221134,92535.0,92527.0,0.00017]
[1736433614631,0.216134,92535.0,92527.0,0.00017]
[1736433614840,0.220134,92535.0,92527.0,0.00017]
[1736433615048,0.2873725,92535.0,92527.0,0.00017]
[1736433615258,0.222134,92535.0,92527.0,0.00017]
[1736433616802,0.001,92535.0,92534.0,0.0001698]
[1736433617018,0.002,92535.0,92534.0,0.0001698]
[1736433617218,0.001,92535.0,92534.0,0.0001698]
[1736433620122,0.43226,92537.0,92534.0,0.0001698]
[1736433620537,0.004,92535.0,92534.0,0.0001698]
[1736433620748,0.43226,92537.0,92534.0,0.0001698]
[1736433620954,0.216134,92535.0,92534.0,0.0001698]
[1736433621162,0.216134,92535.0,92534.0,0.0011698]
[1736433621379,0.216134,92535.0,92534.0,0.0001698]
[1736433621794,0.220134,92535.0,92534.0,0.0011698]
[1736433622031,0.216134,92535.0,92534.0,0.0011698]
[1736433622205,0.2809725,92535.0,92534.0,0.0011698]
[1736433622418,0.2809725,92535.0,92534.0,0.0001698]
[1736433622634,0.2819725,92535.0,92534.0,0.0001698]
[1736433623061,0.2809725,92535.0,92534.0,0.0001698]
[1736433623290,0.3967217,92535.0,92534.0,0.0001698]
[1736433623488,0.8882544,92535.0,92534.0,0.0001698]
[1736433623713,0.8852544,92535.0,92534.0,0.0001698]
[1736433623909,0.8204159,92535.0,92534.0,0.0001698]
[1736433624112,0.8234159,92535.0,92534.0,0.0001698]
[1736433624319,0.8204159,92535.0,92534.0,0.0001698]
[1736433624775,0.8224159,92535.0,92534.0,0.0001698]
[1736433625179,0.8234159,92535.0,92534.0,0.0001698]
[1736433625560,0.8224159,92535.0,92534.0,0.0001698]
[1736433625788,0.92671566,92535.0,92534.0,0.0001698]
[1736433626026,0.8234159,92535.0,92534.0,0.0001698]
[1736433626195,0.23158344,92535.0,92534.0,0.0001698]
[1736433626625,0.22858344,92535.0,92534.0,0.0001698]
[1736433626945,0.23258344,92535.0,92534.0,0.0001698]
[1736433628430,0.005,92535.0,92534.0,0.0001698]
[1736433628851,0.004,92535.0,92534.0,0.3395058]
[1736433629069,0.004,92535.0,92534.0,0.52249641]
[1736433629070,0.005,92535.0,92534.0,0.52249641]
[1736433629477,0.005,92535.0,92534.0,0.46680556]
[1736433629686,0.004,92535.0,92534.0,0.3395058]
[1736433629886,0.216115,92543.0,92534.0,0.1233698]
[1736433630095,0.002,92535.0,92534.0,0.1233698]
[1736433630536,0.216115,92543.0,92534.0,0.1233698]
[1736433630745,0.00011345,92544.0,92535.0,0.216134]
[1736433630949,0.00011345,92544.0,92535.0,0.432268]
[1736433631171,0.00011345,92544.0,92535.0,0.216134]
[1736433631386,0.02288144,92544.0,92534.0,0.1253698]
[1736433631599,0.216132,92536.0,92534.0,0.0804698]
[1736433632215,0.216132,92536.0,92534.0,0.0784698]
[1736433632443,0.216126,92539.0,92534.0,0.0764698]
[1736433632647,0.216134,92535.0,92534.0,0.0764698]
[1736433633284,0.216134,92535.0,92534.0,0.0001698]
[1736433633505,0.216134,92535.0,92534.0,0.0021698]
[1736433633687,0.32043376,92535.0,92534.0,0.0021698]
[1736433633918,0.80796036,92535.0,92534.0,0.0021698]
[1736433634117,0.81947975,92535.0,92534.0,0.0021698]
[1736433634332,0.82047975,92535.0,92534.0,0.0021698]
[1736433634778,0.81947975,92535.0,92534.0,0.0001698]
[1736433635005,0.82847975,92535.0,92534.0,0.0001698]
[1736433635182,0.93277951,92535.0,92534.0,0.0001698]
[1736433635419,0.92377951,92535.0,92534.0,0.0001698]
[1736433635629,1.07777951,92535.0,92534.0,0.0001698]
[1736433636050,1.08077951,92535.0,92534.0,0.0001698]
[1736433636453,1.18077951,92535.0,92534.0,0.0001698]
[1736433636666,1.17777951,92535.0,92534.0,0.0001698]
[1736433636835,1.19037232,92535.0,92534.0,0.0001698]
[1736433637066,0.46615,92528.0,92527.0,1e-06]
[1736433637411,0.46616,92524.0,92523.0,8e-07]
[1736433637626,1.05811216,92524.0,92523.0,8e-07]
[1736433638882,1.1718032,92524.0,92523.0,8e-07]
[1736433639608,1.1758032,92524.0,92523.0,8e-07]
[1736433639989,0.36619,92511.0,92506.0,0.00017]
[1736433640327,1.0628603,92511.0,92510.0,1e-06]
[1736433640551,1.0665603,92511.0,92510.0,1e-06]
[1736433640762,0.216223,92497.0,92496.0,0.0001702]
[1736433640955,0.95824966,92497.0,92496.0,0.0001702]
[1736433641562,0.99212427,92497.0,92496.0,0.00067146]
[1736433641843,0.35,92496.0,92495.0,4.6e-07]
[1736433642103,0.25429976,92496.0,92495.0,0.00015034]
[1736433642396,0.35859952,92496.0,92495.0,0.00015034]
[1736433643119,0.36159952,92496.0,92495.0,0.00015034]
[1736433643550,0.25729976,92496.0,92495.0,0.00015034]
[1736433644506,0.25429976,92496.0,92495.0,0.00015034]
[1736433644702,0.26229976,92496.0,92495.0,0.00015034]
[1736433644905,0.25629976,92496.0,92495.0,0.00015034]
[1736433645314,0.007,92496.0,92495.0,0.00015034]
[1736433645524,0.07371037,92496.0,92495.0,0.00015034]
[1736433645786,0.10429976,92496.0,92495.0,0.00015034]
[1736433646007,0.59203046,92496.0,92495.0,0.00015034]
[1736433646213,0.69203046,92496.0,92495.0,0.00015034]
[1736433647234,0.69903046,92496.0,92495.0,0.00015034]
[1736433647457,0.79633022,92496.0,92495.0,0.00015034]
[1736433647673,0.80533022,92496.0,92495.0,0.00015034]
[1736433647875,1.15533022,92496.0,92495.0,3.4e-07]
[1736433648086,1.04503046,92496.0,92495.0,3.4e-07]
[1736433648289,1.05403046,92496.0,92495.0,3.4e-07]
[1736433648504,0.75103046,92496.0,92495.0,3.4e-07]
[1736433648718,0.84203046,92496.0,92495.0,3.4e-07]
[1736433648930,0.84503046,92496.0,92495.0,3.4e-07]
[1736433649139,0.74503046,92496.0,92495.0,3.4e-07]
[1736433649354,0.25429976,92496.0,92495.0,3.4e-07]
[1736433649558,0.89746568,92496.0,92495.0,3.4e-07]
[1736433649764,0.89946568,92496.0,92495.0,3.4e-07]
[1736433650166,0.90846568,92496.0,92495.0,0.00100034]
[1736433650369,0.90846568,92496.0,92495.0,3.4e-07]
[1736433650571,0.89946568,92496.0,92495.0,3.4e-07]
[1736433650785,0.90846568,92496.0,92495.0,0.00100034]
[1736433651010,1.01159162,92496.0,92495.0,3.4e-07]
[1736433651215,0.216262,92480.0,92479.0,0.00017]
[1736433651431,0.32056176,92480.0,92479.0,0.00031098]
[1736433651640,0.216262,92480.0,92479.0,0.00031098]
[1736433652604,0.53543896,92480.0,92479.0,0.00031098]
[1736433653204,0.47056176,92480.0,92479.0,0.00031098]
[1736433654193,0.47056176,92480.0,92479.0,0.00131098]
[1736433654558,0.47356176,92480.0,92479.0,0.00131098]
[1736433654760,0.47356176,92480.0,92479.0,0.00031098]
[1736433655510,0.48555695,92480.0,92479.0,0.00031098]
[1736433655713,0.57736365,92480.0,92479.0,0.00031098]
[1736433656282,0.38125719,92480.0,92479.0,0.00031098]
[1736433656478,0.23125719,92480.0,92479.0,0.07591098]
[1736433657138,0.219262,92480.0,92479.0,0.07591098]
[1736433657541,0.216262,92480.0,92479.0,0.07591098]
[1736433657740,0.01167146,92483.0,92479.0,0.12291098]
[1736433657960,0.01167146,92483.0,92479.0,0.34017398]
[1736433658132,0.01167146,92483.0,92482.0,0.023]
[1736433658334,0.01167146,92483.0,92482.0,0.20608094]
[1736433658564,0.216213,92502.0,92488.0,0.216242]
[1736433658764,0.216213,92502.0,92489.0,0.0777]
[1736433659014,0.216221,92498.0,92489.0,0.0777]
[1736433660264,0.22769211,92502.0,92489.0,0.0777]
[1736433660472,0.21623,92494.0,92489.0,0.0777]
[1736433660678,0.216239,92490.0,92489.0,0.0777]
[1736433661126,0.216229,92495.0,92489.0,0.0777]
[1736433661345,0.216229,92495.0,92489.0,0.0787]
[1736433661466,0.216236,92492.0,92489.0,0.0787]
[1736433661690,0.432472,92492.0,92489.0,0.0777]
[1736433661893,0.432472,92492.0,92489.0,0.0797]
[1736433662097,0.432472,92492.0,92489.0,0.0827]
[1736433662320,0.216236,92492.0,92489.0,0.0797]
[1736433662497,0.216238,92491.0,92489.0,0.0777]
[1736433662713,0.216228,92495.0,92489.0,0.0817]
[1736433662909,0.216237,92491.0,92489.0,0.0837]
[1736433663115,0.2378607,92491.0,92489.0,0.0837]
[1736433663564,0.22781098,92514.0,92490.0,0.20869976]
[1736433663772,0.216197,92509.0,92497.0,0.0814]
[1736433663974,0.216197,92509.0,92498.0,0.21622]
[1736433664196,0.216174,92518.0,92500.0,0.023]
[1736433664374,0.216189,92512.0,92502.0,0.023]
[1736433664549,0.216189,92512.0,92502.0,0.12729976]
[1736433664849,0.2,92540.0,92502.0,0.12729976]
[1736433665072,0.004,92509.0,92503.0,0.0763]
[1736433665273,0.21617,92520.0,92503.0,0.0763]
[1736433665619,0.216179,92516.0,92503.0,0.0763]
[1736433665823,0.216179,92516.0,92504.0,0.216206]
[1736433666233,0.21617,92520.0,92505.0,0.12838068]
[1736433666453,0.21617,92520.0,92505.0,0.12729976]
[1736433666659,0.216171,92519.0,92505.0,0.34350276]
[1736433666862,0.216201,92507.0,92503.0,0.0763]
[1736433667481,0.216201,92507.0,92503.0,0.0823]
[1736433667901,0.216201,92507.0,92503.0,0.0763]
[1736433668107,0.216201,92507.0,92503.0,0.0773]
[1736433668512,0.432402,92507.0,92503.0,0.0763]
[1736433668718,0.432402,92507.0,92505.0,0.002]
[1736433669277,0.432402,92507.0,92503.0,0.0773]
[1736433669484,0.432402,92507.0,92503.0,0.0793]
[1736433669683,0.44416561,92507.0,92503.0,0.0793]
[1736433670084,0.44416561,92507.0,92503.0,0.0773]
[1736433670588,0.22796461,92507.0,92503.0,0.0763]
[1736433670787,0.216202,92506.0,92503.0,0.0763]
[1736433672472,0.435404,92506.0,92503.0,0.0763]
[1736433673310,0.219202,92506.0,92491.0,0.0459]
[1736433673513,0.219202,92506.0,92494.0,0.0765]
[1736433673514,0.01380432,92506.0,92494.0,0.0765]
[1736433673759,0.01156775,92507.0,92503.0,0.001]
[1736433673971,0.216206,92504.0,92503.0,0.001]
[1736433674176,0.57050576,92504.0,92503.0,0.001]
[1736433674419,0.216262,92480.0,92472.0,0.00017]
[1736433674588,0.366262,92480.0,92472.0,0.00017]
[1736433674789,0.5315042,92480.0,92472.0,0.00017]
[1736433675005,1.12708504,92480.0,92472.0,0.00017]
[1736433675241,0.466288,92469.0,92450.0,0.09724931]
[1736433675375,1.05847526,92469.0,92450.0,0.09724931]
[1736433675576,1.05847526,92469.0,92468.0,0.0006697]
[1736433675791,1.16277502,92469.0,92468.0,0.0006697]
[1736433675995,0.95847526,92469.0,92468.0,0.0006697]
[1736433676209,0.366288,92469.0,92468.0,0.0006697]
[1736433676422,0.37806252,92469.0,92468.0,0.0006697]
[1736433676642,0.38106252,92469.0,92468.0,0.0006697]
[1736433676845,0.48536228,92469.0,92468.0,0.0006697]
[1736433677132,1.07203121,92469.0,92468.0,0.0006697]
[1736433677328,1.07403121,92469.0,92468.0,0.0006697]
[1736433677530,1.17403121,92469.0,92468.0,0.0006697]
[1736433677939,1.28003121,92469.0,92468.0,7e-07]
[1736433678151,0.1,92464.0,92450.0,0.0011702]
[1736433678370,0.366309,92460.0,92450.0,0.0011702]
[1736433678571,0.47060876,92460.0,92450.0,0.0011702]
[1736433679639,0.67060876,92460.0,92459.0,2e-07]
[1736433679843,0.67060876,92460.0,92448.0,5e-07]
[1736433679844,0.35,92449.0,92448.0,5e-07]
[1736433680065,1.17215689,92449.0,92448.0,5e-07]
[1736433680278,0.35,92447.0,92446.0,9e-07]
[1736433680505,0.1,92438.0,92434.0,0.0001305]
[1736433680717,0.566368,92435.0,92434.0,0.0001305]
[1736433680928,0.67414733,92435.0,92434.0,0.0001305]
[1736433681164,0.21644,92404.0,92403.0,0.0001704]
[1736433681780,0.21644,92404.0,92403.0,0.00032096]
[1736433682437,0.216436,92406.0,92403.0,0.00032096]
[1736433682840,0.432872,92406.0,92403.0,0.00032096]
[1736433683049,0.216436,92406.0,92403.0,0.00032096]
[1736433683300,0.001,92404.0,92403.0,0.00032096]
[1736433683828,0.432872,92406.0,92403.0,0.00032096]
[1736433684038,0.216436,92406.0,92403.0,0.00032096]
[1736433684244,0.216436,92406.0,92403.0,0.00132096]
[1736433684452,0.432872,92406.0,92403.0,0.00132096]
[1736433684659,0.007,92404.0,92403.0,0.00232096]
[1736433685071,0.21643,92409.0,92403.0,0.00132096]
[1736433685282,0.001,92406.0,92403.0,0.00132096]
[1736433685514,0.001,92406.0,92404.0,0.023]
[1736433685737,0.216399,92422.0,92406.0,0.023]
[1736433685943,0.22709155,92422.0,92408.0,0.023]
[1736433686145,0.22709155,92422.0,92410.0,0.023]
[1736433686398,0.21641,92417.0,92410.0,0.023]
[1736433686599,0.216421,92413.0,92405.0,0.1221]
[1736433686809,0.01069255,92422.0,92405.0,0.22639976]
[1736433687012,0.216417,92414.0,92406.0,0.023]
[1736433687517,0.216417,92414.0,92410.0,0.001]
[1736433688177,0.216405,92420.0,92410.0,0.001]
[1736433688387,0.216398,92423.0,92411.0,0.023]
[1736433688590,0.216401,92421.0,92411.0,0.023]
[1736433688796,0.216413,92416.0,92410.0,0.001]
[1736433689007,0.04474425,92422.0,92410.0,0.001]
[1736433689211,0.01465751,92426.0,92410.0,0.001]
[1736433689212,0.216424,92411.0,92410.0,0.001]
[1736433689429,0.216424,92411.0,92406.0,0.001]
[1736433689430,0.43285,92411.0,92406.0,0.001]
[1736433689602,0.216424,92411.0,92405.0,0.1221]
[1736433689801,0.216426,92410.0,92405.0,0.1221]
[1736433690130,0.4761386,92410.0,92405.0,0.1221]
[1736433690551,0.0432846,92410.0,92405.0,0.1221]
[1736433690787,0.21642,92413.0,92405.0,0.1221]
[1736433690993,0.23085835,92419.0,92406.0,0.023]
[1736433691204,0.216395,92424.0,92407.0,0.00108205]